[Event "Titled Tuesday Blitz April 4 Early 2023"]
[White "Skvortsov, Andrei"]
[Black "Bruedigam, Martin"]
[WhiteFideId "24108600"]
[BlackFideId "24608033"]
[WhiteElo "2259"]
[BlackElo "2331"]
[Result "1-0"]
[Round "11"]
[TimeControl "180+2"]
[Date "2023.04.04"]
[WhiteClock "0:02:19"]
[BlackClock "0:02:22"]

1. d4 {[%clk 0:03:00]}  Nf6 {[%clk 0:02:58]} 2. c4 {[%clk 0:03:00]}  e6 {[%clk 0:02:58]} 3. Nc3 {[%clk 0:02:57]}  d5 {[%clk 0:02:56]} 4. cxd5 {[%clk 0:02:56]}  exd5 {[%clk 0:02:56]} 5. Bg5 {[%clk 0:02:55]}  Be7 {[%clk 0:02:56]} 6. e3 {[%clk 0:02:52]}  h6 {[%clk 0:02:56]} 7. Bh4 {[%clk 0:02:51]}  O-O {[%clk 0:02:52]} 8. Bd3 {[%clk 0:02:48]}  c6 {[%clk 0:02:52]} 9. Nge2 {[%clk 0:02:49]}  Ne8 {[%clk 0:02:49]} 10. Bxe7 {[%clk 0:02:48]}  Qxe7 {[%clk 0:02:50]} 11. Rc1 {[%clk 0:02:47]}  Nd6 {[%clk 0:02:50]} 12. Qc2 {[%clk 0:02:46]}  a5 {[%clk 0:02:47]} 13. a3 {[%clk 0:02:38]}  Na6 {[%clk 0:02:47]} 14. O-O {[%clk 0:02:38]}  Nc7 {[%clk 0:02:46]} 15. Ng3 {[%clk 0:02:37]}  Bd7 {[%clk 0:02:39]} 16. Nce2 {[%clk 0:02:33]}  Rfe8 {[%clk 0:02:31]} 17. Nf4 {[%clk 0:02:29]}  Qg5 {[%clk 0:02:25]} 18. Rce1 {[%clk 0:02:22]}  Nf5 {[%clk 0:02:21]} 19. Bxf5 {[%clk 0:02:19]}  Bxf5 {[%clk 0:02:22]} 20. Qxf5 {[%clk 0:02:19]} 1-0


[Site "https://www.chess.com"]

[Event "Titled Tuesday Blitz April 4 Early 2023"]
[White "Nguyen Hong Nhung"]
[Black "Gold_Ocean"]
[WhiteFideId "12412201"]
[WhiteElo "1968"]
[BlackElo "2641"]
[Result "1-0"]
[Round "11"]
[TimeControl "180+2"]
[Date "2023.04.04"]
[WhiteClock "0:00:21"]
[BlackClock "0:00:09"]

1. e4 {[%clk 0:03:00]}  c5 {[%clk 0:02:59]} 2. Nc3 {[%clk 0:03:00]}  Nc6 {[%clk 0:02:52]} 3. Bb5 {[%clk 0:02:59]}  Nd4 {[%clk 0:02:49]} 4. Bc4 {[%clk 0:02:59]}  e6 {[%clk 0:02:50]} 5. Nge2 {[%clk 0:02:59]}  Nxe2 {[%clk 0:02:48]} 6. Qxe2 {[%clk 0:02:58]}  d6 {[%clk 0:02:49]} 7. O-O {[%clk 0:02:57]}  Nf6 {[%clk 0:02:49]} 8. d3 {[%clk 0:02:57]}  Be7 {[%clk 0:02:50]} 9. f4 {[%clk 0:02:50]}  O-O {[%clk 0:02:50]} 10. e5 {[%clk 0:02:48]}  Nd7 {[%clk 0:02:44]} 11. exd6 {[%clk 0:02:43]}  Bxd6 {[%clk 0:02:45]} 12. Be3 {[%clk 0:02:40]}  a6 {[%clk 0:02:44]} 13. a4 {[%clk 0:02:37]}  Rb8 {[%clk 0:02:39]} 14. Qh5 {[%clk 0:02:28]}  Nf6 {[%clk 0:02:36]} 15. Qh4 {[%clk 0:02:26]}  Bd7 {[%clk 0:02:33]} 16. Rae1 {[%clk 0:02:26]}  b5 {[%clk 0:02:33]} 17. axb5 {[%clk 0:02:24]}  axb5 {[%clk 0:02:34]} 18. Ba2 {[%clk 0:02:25]}  Qa5 {[%clk 0:02:28]} 19. f5 {[%clk 0:01:53]}  b4 {[%clk 0:02:13]} 20. Bg5 {[%clk 0:01:51]}  Be7 {[%clk 0:01:56]} 21. fxe6 {[%clk 0:01:48]}  bxc3 {[%clk 0:01:35]} 22. exf7+ {[%clk 0:00:58]}  Rxf7 {[%clk 0:01:14]} 23. Qc4 {[%clk 0:00:57]}  Be8 {[%clk 0:00:54]} 24. Rxe7 {[%clk 0:00:56]}  Kh8 {[%clk 0:00:44]} 25. Rxf7 {[%clk 0:00:48]}  Bxf7 {[%clk 0:00:39]} 26. Qxf7 {[%clk 0:00:49]}  Ng8 {[%clk 0:00:34]} 27. bxc3 {[%clk 0:00:42]}  Qxc3 {[%clk 0:00:33]} 28. Bb3 {[%clk 0:00:38]}  h6 {[%clk 0:00:31]} 29. Be3 {[%clk 0:00:27]}  Qe5 {[%clk 0:00:25]} 30. Bf4 {[%clk 0:00:25]}  Qd4+ {[%clk 0:00:25]} 31. Kh1 {[%clk 0:00:26]}  Rd8 {[%clk 0:00:25]} 32. Bg3 {[%clk 0:00:25]}  Nf6 {[%clk 0:00:22]} 33. Bf4 {[%clk 0:00:20]}  Ng4 {[%clk 0:00:21]} 34. h3 {[%clk 0:00:19]}  Nf2+ {[%clk 0:00:17]} 35. Kh2 {[%clk 0:00:19]}  h5 {[%clk 0:00:10]} 36. Bg5 {[%clk 0:00:18]}  Qd6+ {[%clk 0:00:07]} 37. Qf4 {[%clk 0:00:18]}  Qxf4+ {[%clk 0:00:06]} 38. Bxf4 {[%clk 0:00:19]}  Rg8 {[%clk 0:00:07]} 39. Rxf2 {[%clk 0:00:19]}  Rf8 {[%clk 0:00:07]} 40. Be3 {[%clk 0:00:19]}  Rb8 {[%clk 0:00:07]} 41. Bxc5 {[%clk 0:00:19]}  Rc8 {[%clk 0:00:08]} 42. Bd4 {[%clk 0:00:19]}  Kh7 {[%clk 0:00:09]} 43. Rf7 {[%clk 0:00:19]}  Rc6 {[%clk 0:00:09]} 44. Rxg7+ {[%clk 0:00:20]}  Kh6 {[%clk 0:00:09]} 45. Rg3 {[%clk 0:00:19]}  h4 {[%clk 0:00:08]} 46. Be3+ {[%clk 0:00:19]}  Kh7 {[%clk 0:00:09]} 47. Bg8+ {[%clk 0:00:19]}  Kh8 {[%clk 0:00:09]} 48. Bd4+ {[%clk 0:00:20]}  Rf6 {[%clk 0:00:09]} 49. Bxf6# {[%clk 0:00:21]} 1-0


[Site "https://www.chess.com"]

[Event "Titled Tuesday Blitz April 4 Early 2023"]
[White "Seemann, Jakub"]
[Black "Devaev, Alexander"]
[WhiteFideId "21874697"]
[BlackFideId "4169395"]
[WhiteElo "2364"]
[BlackElo "2204"]
[Result "1/2-1/2"]
[Round "11"]
[TimeControl "180+2"]
[Date "2023.04.04"]
[WhiteClock "0:02:38"]
[BlackClock "0:00:08"]

1. c4 {[%clk 0:03:00]}  c5 {[%clk 0:02:56]} 2. Nc3 {[%clk 0:03:00]}  Nf6 {[%clk 0:02:56]} 3. Nf3 {[%clk 0:03:00]}  e6 {[%clk 0:02:56]} 4. g3 {[%clk 0:02:59]}  Nc6 {[%clk 0:02:55]} 5. Bg2 {[%clk 0:02:58]}  Be7 {[%clk 0:02:55]} 6. O-O {[%clk 0:02:58]}  O-O {[%clk 0:02:56]} 7. d4 {[%clk 0:02:58]}  cxd4 {[%clk 0:02:57]} 8. Nxd4 {[%clk 0:02:59]}  Ne5 {[%clk 0:02:57]} 9. b3 {[%clk 0:02:59]}  d6 {[%clk 0:02:58]} 10. Bb2 {[%clk 0:02:59]}  a6 {[%clk 0:02:58]} 11. e4 {[%clk 0:02:59]}  Qc7 {[%clk 0:02:57]} 12. h3 {[%clk 0:03:00]}  Rb8 {[%clk 0:02:57]} 13. f4 {[%clk 0:03:00]}  Ng6 {[%clk 0:02:58]} 14. Kh2 {[%clk 0:03:00]}  Re8 {[%clk 0:02:58]} 15. Qd3 {[%clk 0:03:00]}  Bf8 {[%clk 0:02:59]} 16. Rad1 {[%clk 0:03:00]}  b6 {[%clk 0:02:59]} 17. g4 {[%clk 0:03:00]}  h6 {[%clk 0:02:58]} 18. Qg3 {[%clk 0:03:00]}  Bb7 {[%clk 0:02:55]} 19. h4 {[%clk 0:03:01]}  h5 {[%clk 0:02:27]} 20. g5 {[%clk 0:03:01]}  Ng4+ {[%clk 0:02:27]} 21. Kh1 {[%clk 0:03:02]}  e5 {[%clk 0:02:25]} 22. Nf5 {[%clk 0:03:02]}  exf4 {[%clk 0:01:58]} 23. Rxf4 {[%clk 0:03:03]}  Nxf4 {[%clk 0:01:48]} 24. Qxf4 {[%clk 0:03:04]}  g6 {[%clk 0:01:42]} 25. Ng3 {[%clk 0:03:02]}  Bg7 {[%clk 0:01:35]} 26. Nd5 {[%clk 0:03:03]}  Bxd5 {[%clk 0:01:33]} 27. Bxg7 {[%clk 0:03:03]}  Kxg7 {[%clk 0:01:31]} 28. exd5 {[%clk 0:03:04]}  Re5 {[%clk 0:01:11]} 29. Rf1 {[%clk 0:03:04]}  Rbe8 {[%clk 0:01:07]} 30. Ne4 {[%clk 0:03:05]}  Qe7 {[%clk 0:01:04]} 31. Qf6+ {[%clk 0:03:01]}  Nxf6 {[%clk 0:00:21]} 32. gxf6+ {[%clk 0:03:01]}  Qxf6 {[%clk 0:00:20]} 33. Nxf6 {[%clk 0:03:02]}  R8e7 {[%clk 0:00:18]} 34. b4 {[%clk 0:03:03]}  Rf5 {[%clk 0:00:16]} 35. Rxf5 {[%clk 0:03:02]}  gxf5 {[%clk 0:00:16]} 36. Nxh5+ {[%clk 0:03:03]}  Kg6 {[%clk 0:00:15]} 37. Nf4+ {[%clk 0:03:04]}  Kf6 {[%clk 0:00:16]} 38. c5 {[%clk 0:03:05]}  bxc5 {[%clk 0:00:16]} 39. bxc5 {[%clk 0:03:06]}  dxc5 {[%clk 0:00:14]} 40. Nd3 {[%clk 0:03:05]}  c4 {[%clk 0:00:12]} 41. Nb4 {[%clk 0:03:02]}  Re1+ {[%clk 0:00:10]} 42. Kh2 {[%clk 0:03:02]}  c3 {[%clk 0:00:10]} 43. Kg3 {[%clk 0:02:58]}  Rb1 {[%clk 0:00:06]} 44. Nc2 {[%clk 0:02:47]}  Rb2 {[%clk 0:00:06]} 45. Nd4 {[%clk 0:02:47]}  c2 {[%clk 0:00:07]} 46. Nxc2 {[%clk 0:02:48]}  Rxc2 {[%clk 0:00:07]} 47. a4 {[%clk 0:02:47]}  Ra2 {[%clk 0:00:07]} 48. h5 {[%clk 0:02:45]}  Rxa4 {[%clk 0:00:07]} 49. Bf3 {[%clk 0:02:41]}  Rd4 {[%clk 0:00:07]} 50. Kf2 {[%clk 0:02:41]}  Kg5 {[%clk 0:00:07]} 51. Ke3 {[%clk 0:02:41]}  Rb4 {[%clk 0:00:05]} 52. d6 {[%clk 0:02:39]}  Rb6 {[%clk 0:00:06]} 53. d7 {[%clk 0:02:38]}  Rd6 {[%clk 0:00:07]} 54. Bc6 {[%clk 0:02:38]}  a5 {[%clk 0:00:06]} 55. h6 {[%clk 0:02:37]}  Kxh6 {[%clk 0:00:06]} 56. Kf4 {[%clk 0:02:37]}  Kg6 {[%clk 0:00:06]} 57. Ke5 {[%clk 0:02:36]}  Rxd7 {[%clk 0:00:04]} 58. Bxd7 {[%clk 0:02:36]}  Kg5 {[%clk 0:00:04]} 59. Bxf5 {[%clk 0:02:36]}  a4 {[%clk 0:00:05]} 60. Bd3 {[%clk 0:02:34]}  a3 {[%clk 0:00:05]} 61. Bb1 {[%clk 0:02:34]}  f5 {[%clk 0:00:05]} 62. Kd4 {[%clk 0:02:35]}  f4 {[%clk 0:00:05]} 63. Kc3 {[%clk 0:02:35]}  f3 {[%clk 0:00:05]} 64. Kb3 {[%clk 0:02:36]}  f2 {[%clk 0:00:04]} 65. Bd3 {[%clk 0:02:36]}  Kf4 {[%clk 0:00:04]} 66. Kxa3 {[%clk 0:02:35]}  Ke3 {[%clk 0:00:05]} 67. Ba6 {[%clk 0:02:36]}  Kd2 {[%clk 0:00:06]} 68. Bf1 {[%clk 0:02:36]}  Ke3 {[%clk 0:00:06]} 69. Ba6 {[%clk 0:02:37]}  Kd2 {[%clk 0:00:07]} 70. Bf1 {[%clk 0:02:37]}  Ke1 {[%clk 0:00:07]} 71. Ba6 {[%clk 0:02:38]}  Kd2 {[%clk 0:00:08]} 1/2-1/2


[Site "https://www.chess.com"]

[Event "Titled Tuesday Blitz April 4 Early 2023"]
[White "Kleiman, Jake"]
[Black "Mazurkiewicz, Michal"]
[WhiteFideId "2020041"]
[BlackFideId "1124943"]
[WhiteElo "2622"]
[BlackElo "2054"]
[Result "1/2-1/2"]
[Round "11"]
[TimeControl "180+2"]
[Date "2023.04.04"]
[WhiteClock "0:00:52"]
[BlackClock "0:00:26"]

1. e4 {[%clk 0:03:00]}  d6 {[%clk 0:02:59]} 2. d4 {[%clk 0:03:00]}  Nf6 {[%clk 0:02:58]} 3. Nc3 {[%clk 0:03:01]}  c6 {[%clk 0:02:57]} 4. f4 {[%clk 0:03:01]}  Qb6 {[%clk 0:02:57]} 5. e5 {[%clk 0:02:58]}  Nd5 {[%clk 0:02:56]} 6. Nxd5 {[%clk 0:02:56]}  cxd5 {[%clk 0:02:57]} 7. c3 {[%clk 0:02:57]}  Nc6 {[%clk 0:02:57]} 8. Bd3 {[%clk 0:02:56]}  g6 {[%clk 0:02:51]} 9. h3 {[%clk 0:02:56]}  Bf5 {[%clk 0:02:50]} 10. Nf3 {[%clk 0:02:54]}  e6 {[%clk 0:02:48]} 11. O-O {[%clk 0:02:53]}  Be4 {[%clk 0:02:46]} 12. Kh1 {[%clk 0:02:48]}  h5 {[%clk 0:02:37]} 13. exd6 {[%clk 0:02:46]}  Bxd3 {[%clk 0:02:27]} 14. d7+ {[%clk 0:02:44]}  Kxd7 {[%clk 0:02:27]} 15. Qxd3 {[%clk 0:02:45]}  Bd6 {[%clk 0:02:15]} 16. Ne5+ {[%clk 0:02:44]}  Bxe5 {[%clk 0:02:15]} 17. fxe5 {[%clk 0:02:44]}  Raf8 {[%clk 0:02:16]} 18. Bg5 {[%clk 0:02:40]}  Ne7 {[%clk 0:02:12]} 19. Bxe7 {[%clk 0:02:33]}  Kxe7 {[%clk 0:02:13]} 20. Rf6 {[%clk 0:02:28]}  h4 {[%clk 0:01:35]} 21. Raf1 {[%clk 0:02:25]}  Rh5 {[%clk 0:01:35]} 22. Qd2 {[%clk 0:02:05]}  Rf5 {[%clk 0:01:27]} 23. R1xf5 {[%clk 0:02:01]}  gxf5 {[%clk 0:01:27]} 24. Qg5 {[%clk 0:02:00]}  Ke8 {[%clk 0:01:28]} 25. Qd2 {[%clk 0:01:50]}  Rg8 {[%clk 0:01:26]} 26. Rh6 {[%clk 0:01:49]}  Qa6 {[%clk 0:01:25]} 27. a3 {[%clk 0:01:40]}  Qf1+ {[%clk 0:01:23]} 28. Kh2 {[%clk 0:01:40]}  Rxg2+ {[%clk 0:01:18]} 29. Qxg2 {[%clk 0:01:38]}  Qf4+ {[%clk 0:01:19]} 30. Kh1 {[%clk 0:01:39]}  Qxh6 {[%clk 0:01:19]} 31. Qg8+ {[%clk 0:01:26]}  Ke7 {[%clk 0:01:19]} 32. Qb8 {[%clk 0:01:17]}  Qc1+ {[%clk 0:01:18]} 33. Kg2 {[%clk 0:01:16]}  Qxb2+ {[%clk 0:01:18]} 34. Kh1 {[%clk 0:01:16]}  Qc1+ {[%clk 0:01:04]} 35. Kg2 {[%clk 0:01:14]}  Qd2+ {[%clk 0:00:58]} 36. Kf1 {[%clk 0:01:08]}  Qd3+ {[%clk 0:00:39]} 37. Kf2 {[%clk 0:01:05]}  Qxc3 {[%clk 0:00:39]} 38. Qd6+ {[%clk 0:01:02]}  Ke8 {[%clk 0:00:39]} 39. Qb8+ {[%clk 0:01:02]}  Ke7 {[%clk 0:00:36]} 40. Qd6+ {[%clk 0:00:55]}  Ke8 {[%clk 0:00:36]} 41. Qb8+ {[%clk 0:00:56]}  Kd7 {[%clk 0:00:27]} 42. Qd6+ {[%clk 0:00:52]}  Ke8 {[%clk 0:00:26]} 1/2-1/2


[Site "https://www.chess.com"]

[Event "Titled Tuesday Blitz April 4 Early 2023"]
[White "Nikologorskiy, Konstantin"]
[Black "Skliarov, Viktor"]
[WhiteFideId "24111708"]
[BlackFideId "14106736"]
[WhiteElo "2293"]
[BlackElo "2317"]
[Result "1-0"]
[Round "11"]
[TimeControl "180+2"]
[Date "2023.04.04"]
[WhiteClock "0:00:43"]
[BlackClock "0:00:13"]

1. d4 {[%clk 0:02:58]}  Nf6 {[%clk 0:02:57]} 2. c4 {[%clk 0:02:58]}  e6 {[%clk 0:02:57]} 3. Nf3 {[%clk 0:02:58]}  b6 {[%clk 0:02:53]} 4. g3 {[%clk 0:02:58]}  Bb7 {[%clk 0:02:50]} 5. Bg2 {[%clk 0:02:58]}  Be7 {[%clk 0:02:50]} 6. O-O {[%clk 0:02:58]}  O-O {[%clk 0:02:50]} 7. Nc3 {[%clk 0:02:58]}  Ne4 {[%clk 0:02:51]} 8. Qc2 {[%clk 0:02:57]}  Nxc3 {[%clk 0:02:49]} 9. Qxc3 {[%clk 0:02:58]}  d6 {[%clk 0:02:45]} 10. b3 {[%clk 0:02:58]}  Nd7 {[%clk 0:02:43]} 11. Bb2 {[%clk 0:02:58]}  a5 {[%clk 0:02:43]} 12. Rfe1 {[%clk 0:02:59]}  Bf6 {[%clk 0:02:38]} 13. Rad1 {[%clk 0:02:40]}  Qe7 {[%clk 0:02:36]} 14. e4 {[%clk 0:02:40]}  e5 {[%clk 0:02:36]} 15. Qc2 {[%clk 0:02:37]}  Rfe8 {[%clk 0:02:30]} 16. h3 {[%clk 0:02:36]}  g6 {[%clk 0:02:28]} 17. a3 {[%clk 0:02:36]}  Bc6 {[%clk 0:02:10]} 18. Kh2 {[%clk 0:02:35]}  Bg7 {[%clk 0:02:05]} 19. Ng1 {[%clk 0:02:23]}  exd4 {[%clk 0:01:51]} 20. Bxd4 {[%clk 0:02:23]}  Bxd4 {[%clk 0:01:51]} 21. Rxd4 {[%clk 0:02:24]}  f5 {[%clk 0:01:51]} 22. exf5 {[%clk 0:02:13]}  Qxe1 {[%clk 0:01:50]} 23. Bxc6 {[%clk 0:02:14]}  Rad8 {[%clk 0:01:33]} 24. fxg6 {[%clk 0:02:11]}  Rf8 {[%clk 0:01:20]} 25. Nf3 {[%clk 0:01:30]}  Rxf3 {[%clk 0:00:43]} 26. Bxf3 {[%clk 0:01:31]}  Rf8 {[%clk 0:00:43]} 27. Kg2 {[%clk 0:01:22]}  Ne5 {[%clk 0:00:40]} 28. Bd5+ {[%clk 0:01:22]}  Kh8 {[%clk 0:00:38]} 29. Rh4 {[%clk 0:01:20]}  Nxg6 {[%clk 0:00:27]} 30. Re4 {[%clk 0:01:13]}  Qa1 {[%clk 0:00:24]} 31. f4 {[%clk 0:01:07]}  Qf6 {[%clk 0:00:22]} 32. Re6 {[%clk 0:01:05]}  Qd4 {[%clk 0:00:22]} 33. Re4 {[%clk 0:00:57]}  Qf6 {[%clk 0:00:21]} 34. h4 {[%clk 0:00:52]}  Qa1 {[%clk 0:00:17]} 35. h5 {[%clk 0:00:51]}  Ne5 {[%clk 0:00:16]} 36. Qe2 {[%clk 0:00:46]}  Ng4 {[%clk 0:00:14]} 37. Qxg4 {[%clk 0:00:43]}  Qf6 {[%clk 0:00:13]} 38. Qe2 {[%clk 0:00:43]} 1-0


[Site "https://www.chess.com"]

[Event "Titled Tuesday Blitz April 4 Early 2023"]
[White "Maxfan2008"]
[Black "Volkov, Maksim"]
[BlackFideId "54123070"]
[WhiteElo "2448"]
[BlackElo "2312"]
[Result "1-0"]
[Round "11"]
[TimeControl "180+2"]
[Date "2023.04.04"]
[WhiteClock "0:01:31"]
[BlackClock "0:01:28"]

1. d4 {[%clk 0:03:00]}  d5 {[%clk 0:02:57]} 2. c4 {[%clk 0:02:58]}  e6 {[%clk 0:02:56]} 3. Nc3 {[%clk 0:02:50]}  c6 {[%clk 0:02:56]} 4. e4 {[%clk 0:02:49]}  dxe4 {[%clk 0:02:55]} 5. Nxe4 {[%clk 0:02:50]}  Bb4+ {[%clk 0:02:55]} 6. Bd2 {[%clk 0:02:49]}  Qxd4 {[%clk 0:02:56]} 7. Bxb4 {[%clk 0:02:49]}  Qxe4+ {[%clk 0:02:56]} 8. Be2 {[%clk 0:02:47]}  Na6 {[%clk 0:02:56]} 9. Bd6 {[%clk 0:02:44]}  e5 {[%clk 0:02:19]} 10. Qd2 {[%clk 0:02:19]}  f6 {[%clk 0:02:04]} 11. Rd1 {[%clk 0:02:10]}  Be6 {[%clk 0:02:00]} 12. f3 {[%clk 0:01:49]}  Qg6 {[%clk 0:01:46]} 13. Bd3 {[%clk 0:01:43]}  Qh6 {[%clk 0:01:40]} 14. Qc3 {[%clk 0:01:38]}  Rd8 {[%clk 0:01:36]} 15. Ba3 {[%clk 0:01:38]}  Qe3+ {[%clk 0:01:27]} 16. Ne2 {[%clk 0:01:35]}  Nc5 {[%clk 0:01:28]} 17. Bg6+ {[%clk 0:01:31]} 1-0


[Site "https://www.chess.com"]

[Event "Titled Tuesday Blitz April 4 Early 2023"]
[White "Rios Escobar, Adan"]
[Black "Sielecki, Christof"]
[WhiteFideId "3403645"]
[BlackFideId "4620437"]
[WhiteElo "2441"]
[BlackElo "2443"]
[Result "0-1"]
[Round "11"]
[TimeControl "180+2"]
[Date "2023.04.04"]
[WhiteClock "0:00:01"]
[BlackClock "0:00:21"]

1. d4 {[%clk 0:03:00]}  d5 {[%clk 0:02:58]} 2. g3 {[%clk 0:03:00]}  Nf6 {[%clk 0:02:57]} 3. Nf3 {[%clk 0:02:59]}  c5 {[%clk 0:02:57]} 4. Bg2 {[%clk 0:02:59]}  Nc6 {[%clk 0:02:57]} 5. O-O {[%clk 0:02:59]}  e6 {[%clk 0:02:58]} 6. c4 {[%clk 0:02:55]}  dxc4 {[%clk 0:02:58]} 7. dxc5 {[%clk 0:02:54]}  Qxd1 {[%clk 0:02:57]} 8. Rxd1 {[%clk 0:02:55]}  Bxc5 {[%clk 0:02:57]} 9. Nbd2 {[%clk 0:02:55]}  c3 {[%clk 0:02:58]} 10. bxc3 {[%clk 0:02:54]}  O-O {[%clk 0:02:57]} 11. Nb3 {[%clk 0:02:53]}  Be7 {[%clk 0:02:57]} 12. Bb2 {[%clk 0:02:52]}  Bd7 {[%clk 0:02:56]} 13. c4 {[%clk 0:02:51]}  Rfc8 {[%clk 0:02:49]} 14. Bxf6 {[%clk 0:02:47]}  Bxf6 {[%clk 0:02:46]} 15. Rxd7 {[%clk 0:02:47]}  Bxa1 {[%clk 0:02:46]} 16. Nxa1 {[%clk 0:02:47]}  Rd8 {[%clk 0:02:44]} 17. Rd2 {[%clk 0:02:38]}  Ne5 {[%clk 0:02:27]} 18. Nb3 {[%clk 0:01:23]}  Nxc4 {[%clk 0:02:19]} 19. Rxd8+ {[%clk 0:01:14]}  Rxd8 {[%clk 0:02:20]} 20. h4 {[%clk 0:00:32]}  Rd1+ {[%clk 0:02:04]} 21. Kh2 {[%clk 0:00:32]}  e5 {[%clk 0:01:56]} 22. Ng5 {[%clk 0:00:21]}  b6 {[%clk 0:01:38]} 23. Bc6 {[%clk 0:00:21]}  h6 {[%clk 0:01:29]} 24. Ne4 {[%clk 0:00:18]}  Kf8 {[%clk 0:01:05]} 25. Nc3 {[%clk 0:00:16]}  Rd8 {[%clk 0:01:03]} 26. Bd5 {[%clk 0:00:15]}  Nd6 {[%clk 0:00:56]} 27. e4 {[%clk 0:00:15]}  Rc8 {[%clk 0:00:54]} 28. Nd1 {[%clk 0:00:12]}  Rc2 {[%clk 0:00:49]} 29. a4 {[%clk 0:00:10]}  Ra2 {[%clk 0:00:43]} 30. Nc3 {[%clk 0:00:08]}  Rxf2+ {[%clk 0:00:42]} 31. Kg1 {[%clk 0:00:08]}  Rc2 {[%clk 0:00:41]} 32. Nb5 {[%clk 0:00:08]}  Nxb5 {[%clk 0:00:39]} 33. axb5 {[%clk 0:00:09]}  Ke7 {[%clk 0:00:39]} 34. Kf1 {[%clk 0:00:05]}  Ra2 {[%clk 0:00:35]} 35. g4 {[%clk 0:00:04]}  a6 {[%clk 0:00:35]} 36. bxa6 {[%clk 0:00:02]}  Rxa6 {[%clk 0:00:36]} 37. Nd2 {[%clk 0:00:02]}  b5 {[%clk 0:00:34]} 38. Ke2 {[%clk 0:00:02]}  Kd6 {[%clk 0:00:34]} 39. Kd3 {[%clk 0:00:02]}  f6 {[%clk 0:00:34]} 40. Kc3 {[%clk 0:00:02]}  Ra4 {[%clk 0:00:30]} 41. Nb3 {[%clk 0:00:01]}  h5 {[%clk 0:00:21]} 0-1


[Site "https://www.chess.com"]

[Event "Titled Tuesday Blitz April 4 Early 2023"]
[White "Gabdrakhmanov, Azat"]
[Black "Topalov, Aleksandar"]
[WhiteFideId "34189197"]
[BlackFideId "925659"]
[WhiteElo "2306"]
[BlackElo "2151"]
[Result "1-0"]
[Round "11"]
[TimeControl "180+2"]
[Date "2023.04.04"]
[WhiteClock "0:00:10"]
[BlackClock "0:00:01"]

1. e4 {[%clk 0:03:00]}  e6 {[%clk 0:03:00]} 2. d4 {[%clk 0:02:50]}  d5 {[%clk 0:02:59]} 3. e5 {[%clk 0:02:50]}  Ne7 {[%clk 0:02:58]} 4. Nf3 {[%clk 0:02:49]}  Qd7 {[%clk 0:02:59]} 5. Bd3 {[%clk 0:02:48]}  b6 {[%clk 0:02:59]} 6. O-O {[%clk 0:02:48]}  Ba6 {[%clk 0:02:59]} 7. Bxa6 {[%clk 0:02:42]}  Nxa6 {[%clk 0:02:59]} 8. c3 {[%clk 0:02:42]}  c5 {[%clk 0:02:57]} 9. a4 {[%clk 0:02:41]}  Nf5 {[%clk 0:02:53]} 10. a5 {[%clk 0:02:40]}  b5 {[%clk 0:02:53]} 11. Re1 {[%clk 0:02:26]}  Be7 {[%clk 0:02:53]} 12. Bf4 {[%clk 0:02:18]}  O-O {[%clk 0:02:52]} 13. Qd3 {[%clk 0:02:13]}  cxd4 {[%clk 0:02:49]} 14. Nxd4 {[%clk 0:02:12]}  Nxd4 {[%clk 0:02:48]} 15. cxd4 {[%clk 0:02:05]}  Nb4 {[%clk 0:02:48]} 16. Qd2 {[%clk 0:02:05]}  Rac8 {[%clk 0:02:40]} 17. Nc3 {[%clk 0:02:04]}  a6 {[%clk 0:02:38]} 18. Re3 {[%clk 0:02:00]}  f5 {[%clk 0:02:37]} 19. exf6 {[%clk 0:01:55]}  Bxf6 {[%clk 0:02:37]} 20. Rae1 {[%clk 0:01:44]}  Rfe8 {[%clk 0:02:35]} 21. Be5 {[%clk 0:01:39]}  Bxe5 {[%clk 0:02:34]} 22. Rxe5 {[%clk 0:01:39]}  Rc4 {[%clk 0:02:34]} 23. b3 {[%clk 0:01:21]}  Rcc8 {[%clk 0:02:30]} 24. Ne4 {[%clk 0:01:15]}  Nc2 {[%clk 0:02:19]} 25. Nc5 {[%clk 0:01:14]}  Rxc5 {[%clk 0:02:11]} 26. dxc5 {[%clk 0:01:15]}  Nxe1 {[%clk 0:02:11]} 27. Qxe1 {[%clk 0:01:13]}  d4 {[%clk 0:01:32]} 28. Qd2 {[%clk 0:01:12]}  d3 {[%clk 0:01:31]} 29. Re3 {[%clk 0:01:06]}  Rd8 {[%clk 0:01:30]} 30. h3 {[%clk 0:01:05]}  Qd5 {[%clk 0:01:26]} 31. c6 {[%clk 0:00:56]}  Qxc6 {[%clk 0:01:11]} 32. Rxd3 {[%clk 0:00:55]}  Rxd3 {[%clk 0:01:10]} 33. Qxd3 {[%clk 0:00:56]}  Qc1+ {[%clk 0:01:07]} 34. Kh2 {[%clk 0:00:56]}  Qf4+ {[%clk 0:00:28]} 35. Kg1 {[%clk 0:00:55]}  Qc1+ {[%clk 0:00:28]} 36. Qf1 {[%clk 0:00:56]}  Qc3 {[%clk 0:00:28]} 37. Qd1 {[%clk 0:00:41]}  Qxa5 {[%clk 0:00:27]} 38. g3 {[%clk 0:00:25]}  Qc7 {[%clk 0:00:25]} 39. Qe2 {[%clk 0:00:23]}  Qd6 {[%clk 0:00:23]} 40. Qf3 {[%clk 0:00:20]}  Qd5 {[%clk 0:00:18]} 41. Qc3 {[%clk 0:00:21]}  Kf7 {[%clk 0:00:15]} 42. h4 {[%clk 0:00:19]}  h5 {[%clk 0:00:12]} 43. b4 {[%clk 0:00:17]}  e5 {[%clk 0:00:09]} 44. Qc7+ {[%clk 0:00:16]}  Kg6 {[%clk 0:00:08]} 45. Qb6+ {[%clk 0:00:15]}  Kf5 {[%clk 0:00:08]} 46. Qxa6 {[%clk 0:00:15]}  Qd1+ {[%clk 0:00:08]} 47. Kg2 {[%clk 0:00:15]}  Qd5+ {[%clk 0:00:08]} 48. Kh2 {[%clk 0:00:15]}  Qf3 {[%clk 0:00:06]} 49. Qc8+ {[%clk 0:00:15]}  Kg6 {[%clk 0:00:05]} 50. Qe6+ {[%clk 0:00:15]}  Kh7 {[%clk 0:00:05]} 51. Kg1 {[%clk 0:00:12]}  Qd1+ {[%clk 0:00:05]} 52. Kg2 {[%clk 0:00:13]}  Qd4 {[%clk 0:00:03]} 53. Qf5+ {[%clk 0:00:11]}  g6 {[%clk 0:00:03]} 54. Qf7+ {[%clk 0:00:11]}  Kh6 {[%clk 0:00:03]} 55. Qf8+ {[%clk 0:00:11]}  Kh7 {[%clk 0:00:04]} 56. Qe7+ {[%clk 0:00:12]}  Kh6 {[%clk 0:00:04]} 57. Qc5 {[%clk 0:00:11]}  Qe4+ {[%clk 0:00:02]} 58. Kh2 {[%clk 0:00:11]}  Qe2 {[%clk 0:00:03]} 59. Kg2 {[%clk 0:00:08]}  Kh7 {[%clk 0:00:03]} 60. Qc7+ {[%clk 0:00:07]}  Kh6 {[%clk 0:00:03]} 61. Qd8 {[%clk 0:00:07]}  Kh7 {[%clk 0:00:03]} 62. Qc7+ {[%clk 0:00:07]}  Kh6 {[%clk 0:00:03]} 63. Qb8 {[%clk 0:00:07]}  Kh7 {[%clk 0:00:03]} 64. Qb7+ {[%clk 0:00:08]}  Kh6 {[%clk 0:00:03]} 65. Qa8 {[%clk 0:00:08]}  Kh7 {[%clk 0:00:04]} 66. Qf3 {[%clk 0:00:09]}  Qe1 {[%clk 0:00:03]} 67. Qe3 {[%clk 0:00:09]}  Qxe3 {[%clk 0:00:01]} 68. fxe3 {[%clk 0:00:10]}  e4 {[%clk 0:00:01]} 69. g4 {[%clk 0:00:10]} 1-0


[Site "https://www.chess.com"]